{"text_format":"1","workbook":"xlsx","n_sheets":3,"sheets":[" PLAN NABAVE-TTIP","UPUTE","LPT"],"not_rendered":{"charts":0,"images":3,"macros":1,"external_links":1,"defined_names":881,"comments":0,"pivot_tables":0},"unopened":[],"bounds":{"document_bytes":16777216,"sheet_cells":100000,"rows_first":2000,"rows_last":500,"rows_between":2000,"halvings":0,"cell_chars":16384,"cell_head_chars":4096},"cells_cut":0,"cells_raw":0,"read":"whole","date_system":"1900"}

{"sheet":" PLAN NABAVE-TTIP","index":0,"n_rows":156,"n_cols":32,"rows_kept":156,"cut":false,"hidden":false,"merged":[[149,6,149,9],[149,1,149,4],[145,1,145,4],[132,1,132,4],[133,1,133,4],[141,0,141,9],[147,1,147,4],[148,1,148,4],[143,1,143,3],[146,1,146,3],[144,1,144,4],[4,1,4,5],[3,6,3,9],[137,0,137,9],[142,1,142,3],[123,0,123,10],[126,0,128,0],[130,1,130,4],[140,0,140,9],[136,1,136,4],[138,1,138,4],[139,1,139,4],[131,1,131,4],[0,18,0,23],[134,1,134,4],[135,1,135,4],[46,1,46,5],[46,6,46,10],[126,5,128,5],[126,10,128,10],[128,1,128,4],[0,6,0,17],[3,2,3,4],[124,0,124,5],[124,6,124,10],[0,1,0,5],[126,1,126,4],[127,1,127,4],[129,1,129,4]]}
["RED","FAZA I  - PLAN NABAVE\nPodmjera 19.2. \"Provedba operacija unutar CLLD strategije\"\nM19 - LEADER (CLLD)\n",null,null,null,null,"FAZA II   - TABLICA TROŠKOVA I IZRAČUNA POTPORE (TTIP) \nPodmjera 19.2. \"Provedba operacija unutar CLLD strategije\"\nM19 - LEADER (CLLD)",null,null,null,null,null,null,null,null,null,null,null,"FAZA III  - Zahtjev za isplatu   \n\"TABLICA TROŠKOVA I IZRAČUNA POTPORE\""]
[null,"Naziv prihvatljivog troška ","Naziv  predmeta nabave","Opis predmeta nabave\n(kapacitet, količina, snaga i sl.) ","Vrsta nabave \n(javna nabava, jednostavna nabava, nositelj projekta nije obveznik Javne nabave)","Procijenjeni iznos nabave u kunama\n(naznačiti je li s PDV-om ili bez PDV-a; izbrisati jedno od to dvoje ovisno o tome je li PDV prihvatljiv za financiranje ILI NE)","Naziva troška prema ponudi","Naziv ponuditelja","Datum odabrane  ponude","Broj odabrane ponude","Iznos troška u kunama\n(s PDV-om ako je PDV prihvatljiv ili bez PDV-a ako nije prihvatljiv)","STUPAC \"L\" HIDE!!!","Najviši iznos potpore po trošku prije primljene potpore iz drugih izvora za iste troškove i prije primjene fin. korekcije","Primljena/dodijeljena javna potpora iz drugih javnih izvora za pojedini trošak ","Najviši iznos potpore po trošku s uračunatim svim potporama iz drugih izvora za iste troškove prije primjene fin. korekcije","Stopa financijske korekcije ako je izrečena u ovoj fazi","Iznos financijske korekcije izračunat primjenom izrečene stope financijske korekcije korekcije ili izražen u apsolutnom iznosu","Iznos potpore po trošku s uračunatom financijskom korekcijom","Dobavljač/\nbr. Računa/\nKupoprodajni ugovor ","Jedinica mjere","Količina","Jedinična cijena ","Ukupna vrijednost po stavci (oprema/\nprihvatljivi izdaci)","Ukupna vrijednost po stavci (oprema/\nprihvatljivi izdaci\nu valuti )"]
[1,2,3,4,5,6,7,8,9,10,11,null,12,13,14,15,16,17]
["A","Ukupan iznos prihvatljivih troškova bez općih troškova i kupnje zemljišta/objekata radi realizacije projekta",null,null,null,{"$f":"SUM(F6:F105)","v":0},null,null,null,null,{"$f":"SUM(K6:K105)","v":0},null,null,null,null,null,null,{"$f":"SUM(R5:R105)","v":0},null,null,null,null,{"$f":"SUM(W6:W105)","v":0},{"$f":"SUM(X6:X105)","v":0}]
[null,"A) Ulaganje u građenje /rekonstrukciju i/ili opremanje:"]
[null,"1. Objekti za poslovanje s mlijekom i preradom mlijeka s pripadajućom opremom i unutarnjom i vanjskom infrastrukturom, uključujući rashladnu opremu za sirovo mlijeko"]
[null,"Građenje"]
[]
[null,null,null,null,null,null,null,null,null,null,null,null,{"$f":"K9*$K$142","v":0},null,{"$f":"IF(M9+N9>K9*$K$140,M9-((M9+N9)-(K9*$K$140)),M9)","v":0},0,{"$f":"ROUND(O9*P9,2)","v":0},{"$f":"O9-Q9","v":0}]
[null,null,null,null,null,null,null,null,null,null,null,null,{"$f":"K10*$K$142","v":0},null,{"$f":"IF(M10+N10>K10*$K$140,M10-((M10+N10)-(K10*$K$140)),M10)","v":0},0,{"$f":"ROUND(O10*P10,2)","v":0},{"$f":"O10-Q10","v":0}]
[null,null,null,null,null,null,null,null,null,null,null,null,{"$f":"K11*$K$142","v":0},null,{"$f":"IF(M11+N11>K11*$K$140,M11-((M11+N11)-(K11*$K$140)),M11)","v":0},0,0,0]
[null,"Opremanje"]
[null,null,null,null,null,null,null,null,null,null,null,null,{"$f":"K13*$K$142","v":0},null,{"$f":"IF(M13+N13>K13*$K$140,M13-((M13+N13)-(K13*$K$140)),M13)","v":0},0,{"$f":"ROUND(O13*P13,2)","v":0},0]
[null,null,null,null,null,null,null,null,null,null,null,null,{"$f":"K14*$K$142","v":0},null,{"$f":"IF(M14+N14>K14*$K$140,M14-((M14+N14)-(K14*$K$140)),M14)","v":0},0,{"$f":"ROUND(O14*P14,2)","v":0},0]
[null,null,null,null,null,null,null,null,null,null,null,null,{"$f":"K15*$K$142","v":0},null,{"$f":"IF(M15+N15>K15*$K$140,M15-((M15+N15)-(K15*$K$140)),M15)","v":0},0,{"$f":"ROUND(O15*P15,2)","v":0},0]
[null,"2.  Objekti za klanje, rasijecanje, hlađenje, preradu (mesa i jaja) i pripadajuće skladištenje s pripadajućom unutarnjom i vanjskom infrastrukturom"]
[null,"Građenje "]
[null,null,null,null,null,null,null,null,null,null,null,null,{"$f":"K18*$K$142","v":0},null,{"$f":"IF(M18+N18>K18*$K$140,M18-((M18+N18)-(K18*$K$140)),M18)","v":0},0,{"$f":"ROUND(O18*P18,2)","v":0},{"$f":"O18-Q18","v":0}]
[null,null,null,null,null,null,null,null,null,null,null,null,{"$f":"K19*$K$142","v":0},null,{"$f":"IF(M19+N19>K19*$K$140,M19-((M19+N19)-(K19*$K$140)),M19)","v":0},0,{"$f":"ROUND(O19*P19,2)","v":0},0]
[null,null,null,null,null,null,null,null,null,null,null,null,{"$f":"K20*$K$142","v":0},null,{"$f":"IF(M20+N20>K20*$K$140,M20-((M20+N20)-(K20*$K$140)),M20)","v":0},0,{"$f":"ROUND(O20*P20,2)","v":0},0]
[null,"Opremanje"]
[null,null,null,null,null,null,null,null,null,null,null,null,{"$f":"K22*$K$142","v":0},null,{"$f":"IF(M22+N22>K22*$K$140,M22-((M22+N22)-(K22*$K$140)),M22)","v":0},0,{"$f":"ROUND(O22*P22,2)","v":0},0]
[null,null,null,null,null,null,null,null,null,null,null,null,{"$f":"K23*$K$142","v":0},null,{"$f":"IF(M23+N23>K23*$K$140,M23-((M23+N23)-(K23*$K$140)),M23)","v":0},0,{"$f":"ROUND(O23*P23,2)","v":0},0]
[null,null,null,null,null,null,null,null,null,null,null,null,{"$f":"K24*$K$142","v":0},null,{"$f":"IF(M24+N24>K24*$K$140,M24-((M24+N24)-(K24*$K$140)),M24)","v":0},0,{"$f":"ROUND(O24*P24,2)","v":0},0]
[null,"3. Centri (sabirališta) za sakupljanje i preradu otpada, ostataka iz poljoprivredne proizvodnje i nusproizvoda životinjskog podrijetla koji nisu za prehranu ljudi s pripadajućom unutarnjom i vanjskom infrastrukturom"]
[null,"Građenje"]
[null,null,null,null,null,null,null,null,null,null,null,null,{"$f":"K27*$K$142","v":0},null,{"$f":"IF(M27+N27>K27*$K$140,M27-((M27+N27)-(K27*$K$140)),M27)","v":0},0,{"$f":"ROUND(O27*P27,2)","v":0},{"$f":"O27-Q27","v":0}]
[null,null,null,null,null,null,null,null,null,null,null,null,{"$f":"K28*$K$142","v":0},null,{"$f":"IF(M28+N28>K28*$K$140,M28-((M28+N28)-(K28*$K$140)),M28)","v":0},0,{"$f":"ROUND(O28*P28,2)","v":0},0]
[null,null,null,null,null,null,null,null,null,null,null,null,{"$f":"K29*$K$142","v":0},null,{"$f":"IF(M29+N29>K29*$K$140,M29-((M29+N29)-(K29*$K$140)),M29)","v":0},0,{"$f":"ROUND(O29*P29,2)","v":0},0]
[null,"Opremanje"]
[null,null,null,null,null,null,null,null,null,null,null,null,{"$f":"K31*$K$142","v":0},null,{"$f":"IF(M31+N31>K31*$K$140,M31-((M31+N31)-(K31*$K$140)),M31)","v":0},0,{"$f":"ROUND(O31*P31,2)","v":0},0]
[null,null,null,null,null,null,null,null,null,null,null,null,{"$f":"K32*$K$142","v":0},null,{"$f":"IF(M32+N32>K32*$K$140,M32-((M32+N32)-(K32*$K$140)),M32)","v":0},0,{"$f":"ROUND(O32*P32,2)","v":0},0]
[null,null,null,null,null,null,null,null,null,null,null,null,{"$f":"K33*$K$142","v":0},null,{"$f":"IF(M33+N33>K33*$K$140,M33-((M33+N33)-(K33*$K$140)),M33)","v":0},0,{"$f":"ROUND(O33*P33,2)","v":0},0]
[null,"4. Objekti za preradu voća, povrća, grožđa (osim za proizvodnju vina), aromatičnog, začinskog i ljekovitog bilja, cvijeća i gljiva s pripadajućom unutarnjom i vanjskom infrastrukturom uključujući preradu ostataka iz proizvodnje"]
[null,"Građenje"]
[null,null,null,null,null,null,null,null,null,null,null,null,{"$f":"K36*$K$142","v":0},null,{"$f":"IF(M36+N36>K36*$K$140,M36-((M36+N36)-(K36*$K$140)),M36)","v":0},0,{"$f":"ROUND(O36*P36,2)","v":0},{"$f":"O36-Q36","v":0}]
[null,null,null,null,null,null,null,null,null,null,null,null,{"$f":"K37*$K$142","v":0},null,{"$f":"IF(M37+N37>K37*$K$140,M37-((M37+N37)-(K37*$K$140)),M37)","v":0},0,{"$f":"ROUND(O37*P37,2)","v":0},0]
[null,null,null,null,null,null,null,null,null,null,null,null,{"$f":"K38*$K$142","v":0},null,{"$f":"IF(M38+N38>K38*$K$140,M38-((M38+N38)-(K38*$K$140)),M38)","v":0},0,{"$f":"ROUND(O38*P38,2)","v":0},0]
[null,"Opremanje"]
[null,null,null,null,null,null,null,null,null,null,null,null,{"$f":"K40*$K$142","v":0},null,{"$f":"IF(M40+N40>K40*$K$140,M40-((M40+N40)-(K40*$K$140)),M40)","v":0},0,{"$f":"ROUND(O40*P40,2)","v":0},0]
[null,null,null,null,null,null,null,null,null,null,null,null,{"$f":"K41*$K$142","v":0},null,{"$f":"IF(M41+N41>K41*$K$140,M41-((M41+N41)-(K41*$K$140)),M41)","v":0},0,{"$f":"ROUND(O41*P41,2)","v":0},0]
[null,"5. Objekti za preradu maslina, komine masline s pripadajućom unutarnjom i vanjskom infrastrukturom"]
[null,"Građenje"]
[null,null,null,null,null,null,null,null,null,null,null,null,{"$f":"K44*$K$142","v":0},null,{"$f":"IF(M44+N44>K44*$K$140,M44-((M44+N44)-(K44*$K$140)),M44)","v":0},0,{"$f":"ROUND(O44*P44,2)","v":0},{"$f":"O44-Q44","v":0}]
[null,null,null,null,null,null,null,null,null,null,null,null,{"$f":"K45*$K$142","v":0},null,{"$f":"IF(M45+N45>K45*$K$140,M45-((M45+N45)-(K45*$K$140)),M45)","v":0},0,{"$f":"ROUND(O45*P45,2)","v":0},0]
[null,null,null,null,null,null,null,null,null,null,null,null,{"$f":"K46*$K$142","v":0},null,{"$f":"IF(M46+N46>K46*$K$140,M46-((M46+N46)-(K46*$K$140)),M46)","v":0},0,{"$f":"ROUND(O46*P46,2)","v":0},0]
[null,"Opremanje"]
[null,null,null,null,null,null,null,null,null,null,null,null,{"$f":"K48*$K$142","v":0},null,{"$f":"IF(M48+N48>K48*$K$140,M48-((M48+N48)-(K48*$K$140)),M48)","v":0},0,{"$f":"ROUND(O48*P48,2)","v":0},0]
[null,null,null,null,null,null,null,null,null,null,null,null,{"$f":"K49*$K$142","v":0},null,{"$f":"IF(M49+N49>K49*$K$140,M49-((M49+N49)-(K49*$K$140)),M49)","v":0},0,{"$f":"ROUND(O49*P49,2)","v":0},0]
[null,null,null,null,null,null,null,null,null,null,null,null,{"$f":"K50*$K$142","v":0},null,{"$f":"IF(M50+N50>K50*$K$140,M50-((M50+N50)-(K50*$K$140)),M50)","v":0},0,{"$f":"ROUND(O50*P50,2)","v":0},0]
[null,"5a. Opremanje za nepeltiranu i peletiranu kominu masline "]
[null,null,null,null,null,null,null,null,null,null,null,null,{"$f":"K52*$K$142","v":0},null,{"$f":"IF(M52+N52>K52*$K$140,M52-((M52+N52)-(K52*$K$140)),M52)","v":0},0,{"$f":"ROUND(O52*P52,2)","v":0},0]
[null,null,null,null,null,null,null,null,null,null,null,null,{"$f":"K53*$K$142","v":0},null,{"$f":"IF(M53+N53>K53*$K$140,M53-((M53+N53)-(K53*$K$140)),M53)","v":0},0,0,0]
[null,"6. Objekti za preradu žitarica, uljarica i industrijskog bilja te njihovih ostataka s pripadajućom unutarnjom i vanjskom infrastrukturom"]
[null,"Građenje"]
[null,null,null,null,null,null,null,null,null,null,null,null,{"$f":"K56*$K$142","v":0},null,{"$f":"IF(M56+N56>K56*$K$140,M56-((M56+N56)-(K56*$K$140)),M56)","v":0},0,0,0]
[null,null,null,null,null,null,null,null,null,null,null,null,{"$f":"K57*$K$142","v":0},null,{"$f":"IF(M57+N57>K57*$K$140,M57-((M57+N57)-(K57*$K$140)),M57)","v":0},0,0,0]
[null,"Opremanje"]
[null,null,null,null,null,null,null,null,null,null,null,null,{"$f":"K59*$K$142","v":0},null,{"$f":"IF(M59+N59>K59*$K$140,M59-((M59+N59)-(K59*$K$140)),M59)","v":0},0,0,0]
[null,null,null,null,null,null,null,null,null,null,null,null,{"$f":"K60*$K$142","v":0},null,{"$f":"IF(M60+N60>K60*$K$140,M60-((M60+N60)-(K60*$K$140)),M60)","v":0},0,0,0]
[null,"7. Objekti za preradu, punjenje i pakiranje  pčelinjih proizvoda s pripadajućom unutarnjom i vanjskom infrastrukturom"]
[null,"Građenje"]
[null,null,null,null,null,null,null,null,null,null,null,null,{"$f":"K63*$K$142","v":0},null,{"$f":"IF(M63+N63>K63*$K$140,M63-((M63+N63)-(K63*$K$140)),M63)","v":0},0,0,0]
[null,null,null,null,null,null,null,null,null,null,null,null,{"$f":"K64*$K$142","v":0},null,{"$f":"IF(M64+N64>K64*$K$140,M64-((M64+N64)-(K64*$K$140)),M64)","v":0},0,0,0]
[null,"Opremanje"]
[null,null,null,null,null,null,null,null,null,null,null,null,{"$f":"K66*$K$142","v":0},null,{"$f":"IF(M66+N66>K66*$K$140,M66-((M66+N66)-(K66*$K$140)),M66)","v":0},0,0,0]
[null,null,null,null,null,null,null,null,null,null,null,null,{"$f":"K67*$K$142","v":0},null,{"$f":"IF(M67+N67>K67*$K$140,M67-((M67+N67)-(K67*$K$140)),M67)","v":0},0,0,0]
[null,"8. Objekti za preradu ostalih proizvoda navedenih u Prilogu I. Ugovoru s pripadajućom vanjskom i unutarnjom infrastrukturom"]
[null,"Građenje"]
[null,null,null,null,null,null,null,null,null,null,null,null,{"$f":"K70*$K$142","v":0},null,{"$f":"IF(M70+N70>K70*$K$140,M70-((M70+N70)-(K70*$K$140)),M70)","v":0},0,0,0]
[null,null,null,null,null,null,null,null,null,null,null,null,{"$f":"K71*$K$142","v":0},null,{"$f":"IF(M71+N71>K71*$K$140,M71-((M71+N71)-(K71*$K$140)),M71)","v":0},0,0,0]
[null,"Opremanje",null,null,null,null,null,null,null,null,null,null,null,null,null,null,null,null,null,null,null,null,null,null,null,null,null,null,null,null,null,"Javna nabava "]
[null,null,null,null,null,null,null,null,null,null,null,null,{"$f":"K73*$K$142","v":0},null,{"$f":"IF(M73+N73>K73*$K$140,M73-((M73+N73)-(K73*$K$140)),M73)","v":0},0,0,0,null,null,null,null,null,null,null,null,null,null,null,null,null,"Jednostavna nabava "]
[null,null,null,null,null,null,null,null,null,null,null,null,{"$f":"K74*$K$142","v":0},null,{"$f":"IF(M74+N74>K74*$K$140,M74-((M74+N74)-(K74*$K$140)),M74)","v":0},0,0,0,null,null,null,null,null,null,null,null,null,null,null,null,null,"Korisnik nije obveznik javne nabave "]
[null,"9. Ostali gospodarski objekti, upravne prostorije s pripadajućim sadržajima, opremom i infrastrukturom koji su u funkciji  djelatnosti prerade"]
[null,"Građenje"]
[null,null,null,null,null,null,null,null,null,null,null,null,{"$f":"K77*$K$142","v":0},null,{"$f":"IF(M77+N77>K77*$K$140,M77-((M77+N77)-(K77*$K$140)),M77)","v":0},0,0,0]
[null,null,null,null,null,null,null,null,null,null,null,null,{"$f":"K78*$K$142","v":0},null,{"$f":"IF(M78+N78>K78*$K$140,M78-((M78+N78)-(K78*$K$140)),M78)","v":0},0,0,0]
[null,"Opremanje"]
[null,null,null,null,null,null,null,null,null,null,null,null,{"$f":"K80*$K$142","v":0},null,{"$f":"IF(M80+N80>K80*$K$140,M80-((M80+N80)-(K80*$K$140)),M80)","v":0},0,0,0]
[null,null,null,null,null,null,null,null,null,null,null,null,{"$f":"K81*$K$142","v":0},null,{"$f":"IF(M81+N81>K81*$K$140,M81-((M81+N81)-(K81*$K$140)),M81)","v":0},0,0,0]
[null,"10. Objekti za prodaju i prezentaciju vlastitih poljoprivrednih proizvoda "]
[null,"Građenje"]
[null,null,null,null,null,null,null,null,null,null,null,null,{"$f":"K84*$K$142","v":0},null,{"$f":"IF(M84+N84>K84*$K$140,M84-((M84+N84)-(K84*$K$140)),M84)","v":0},0,0,0]
[null,null,null,null,null,null,null,null,null,null,null,null,{"$f":"K85*$K$142","v":0},null,{"$f":"IF(M85+N85>K85*$K$140,M85-((M85+N85)-(K85*$K$140)),M85)","v":0},0,0,0]
[null,"Opremanje"]
[null,null,null,null,null,null,null,null,null,null,null,null,{"$f":"K87*$K$142","v":0},null,{"$f":"IF(M87+N87>K87*$K$140,M87-((M87+N87)-(K87*$K$140)),M87)","v":0},0,0,0]
[null,null,null,null,null,null,null,null,null,null,null,null,{"$f":"K88*$K$142","v":0},null,{"$f":"IF(M88+N88>K88*$K$140,M88-((M88+N88)-(K88*$K$140)),M88)","v":0},0,0,0]
[null,"11. Objekti za obradu otpadnih voda u preradi i trženju, filtriranje zraka i rashladne sustave s pripadajućom unutarnjom i vanjskom infrastrukturom "]
[null,"Građenje"]
[null,null,null,null,null,null,null,null,null,null,null,null,{"$f":"K91*$K$142","v":0},null,{"$f":"IF(M91+N91>K91*$K$140,M91-((M91+N91)-(K91*$K$140)),M91)","v":0},0,0,0]
[null,null,null,null,null,null,null,null,null,null,null,null,{"$f":"K92*$K$142","v":0},null,{"$f":"IF(M92+N92>K92*$K$140,M92-((M92+N92)-(K92*$K$140)),M92)","v":0},0,0,0]
[null,"Opremanje"]
[null,null,null,null,null,null,null,null,null,null,null,null,{"$f":"K94*$K$142","v":0},null,{"$f":"IF(M94+N94>K94*$K$140,M94-((M94+N94)-(K94*$K$140)),M94)","v":0},0,0,0]
[null,null,null,null,null,null,null,null,null,null,null,null,{"$f":"K95*$K$142","v":0},null,{"$f":"IF(M95+N95>K95*$K$140,M95-((M95+N95)-(K95*$K$140)),M95)","v":0},0,0,0]
[null,"12. Laboratoriji za vlastite potrebe nositelja projekta koji su u funkciji djelatnosti prerade"]
[null,null,null,null,null,null,null,null,null,null,null,null,{"$f":"K97*$K$142","v":0},null,{"$f":"IF(M97+N97>K97*$K$140,M97-((M97+N97)-(K97*$K$140)),M97)","v":0},0,0,0]
[null,null,null,null,null,null,null,null,null,null,null,null,{"$f":"K98*$K$142","v":0},null,{"$f":"IF(M98+N98>K98*$K$140,M98-((M98+N98)-(K98*$K$140)),M98)","v":0},0,0,0]
[]
[null,"B)  Kupnja gospodarskih vozila, poljoprivrednih strojeva i opreme "]
[null,null,null,null,null,null,null,null,null,null,null,null,{"$f":"K101*$K$142","v":0},0,{"$f":"IF(M101+N101>K101*$K$140,M101-((M101+N101)-(K101*$K$140)),M101)","v":0},0,{"$f":"ROUND(O101*P101,2)","v":0},{"$f":"O101-Q101","v":0}]
[null,null,null,null,null,null,null,null,null,null,null,null,{"$f":"K102*$K$142","v":0},null,{"$f":"IF(M102+N102>K102*$K$140,M102-((M102+N102)-(K102*$K$140)),M102)","v":0},0,{"$f":"ROUND(O102*P102,2)","v":0},0]
[null,"C)  Prilagodba novouvedenim standardima sukladno članku 17. Uredbe (EU) 1305/2013"]
[null,null,null,null,null,null,null,null,null,null,null,null,{"$f":"K104*$K$142","v":0},0,{"$f":"IF(M104+N104>K104*$K$140,M104-((M104+N104)-(K104*$K$140)),M104)","v":0},0,{"$f":"ROUND(O104*P104,2)","v":0},{"$f":"O104-Q104","v":0}]
[null,null,null,null,null,null,null,null,null,null,null,null,{"$f":"K105*$K$142","v":0},0,{"$f":"IF(M105+N105>K105*$K$140,M105-((M105+N105)-(K105*$K$140)),M105)","v":0},0,{"$f":"ROUND(O105*P105,2)","v":0},0]
["B","Kupnja zemljišta i objekata radi realizacije projekta, do 10% vrijednosti ukupno prihvatljivih troškova projekta (bez općih troškova), ako se ulaganje provodi sukladno važećim propisima kojima se uređuje gradnja, uz mogućnost kupnje prije podnošenja prijave projekta, ali ne prije 1. siječnja 2014. godine",null,null,null,{"$f":"SUM(F107:F108)","v":0},null,null,null,null,{"$f":"SUM(K107:K108)","v":0},null,null,null,null,null,null,{"$f":"IF(K4*0.1*K140<SUM(R107:R108),K4*0.1*K140,SUM(R107:R108))","v":0},null,null,null,null,{"$f":"SUM(W107:W108)","v":0},{"$f":"SUM(X107:X108)","v":0}]
[null,null,null,null,null,null,null,null,null,null,null,{"$f":"IF(SUM(K$107:K$108)>K$130,K107/(SUM(K$107:K$108))*$K$130,K107)","v":0},{"$f":"IFERROR(L107*$K$142,0)","v":0},0,{"$f":"IF(M107+N107>K107*$K$140,M107-((M107+N107)-(K107*$K$140)),M107)","v":0},0,{"$f":"ROUND(O107*P107,2)","v":0},0]
[null,null,null,null,null,null,null,null,null,null,null,{"$f":"IF(SUM(K$107:K$108)>K$130,K108/(SUM(K$107:K$108))*$K$130,K108)","v":0},{"$f":"IFERROR(L108*$K$142,0)","v":0},0,{"$f":"IF(M108+N108>K108*$K$140,M108-((M108+N108)-(K108*$K$140)),M108)","v":0},0,{"$f":"ROUND(O108*P108,2)","v":0},0]
["C","Troškovi pripreme poslovnog plana",null,null,null,{"$f":"SUM(F110:F111)","v":0},null,null,null,null,{"$f":"SUM(K110:K111)","v":0},null,null,null,null,null,null,{"$f":"SUM(R110:R111)","v":0},null,null,null,null,{"$f":"SUM(W110:W111)","v":0},{"$f":"SUM(X110:X111)","v":0}]
[null,null,null,null,null,null,null,null,null,null,null,{"$f":"IF(SUM(K$110:K$111)>K$133,K110/(SUM(K$110:K$111))*K$133,K110)","v":0},{"$f":"IFERROR(L110*$K$142,0)","v":0},0,{"$f":"IF(M110+N110>K110*$K$140,M110-((M110+N110)-(K110*$K$140)),M110)","v":0},0,{"$f":"ROUND(O110*P110,2)","v":0},0]
[null,null,null,null,null,null,null,null,null,null,null,{"$f":"IF(SUM(K$110:K$111)>K$133,K111/(SUM(K$110:K$111))*K$133,K111)","v":0},{"$f":"IFERROR(L111*$K$142,0)","v":0},0,{"$f":"IF(M111+N111>K111*$K$140,M111-((M111+N111)-(K111*$K$140)),M111)","v":0},0,{"$f":"ROUND(O111*P111,2)","v":0},0]
["D","Troškovi pripreme dokumentacije",null,null,null,{"$f":"SUM(F113:F114)","v":0},null,null,null,null,{"$f":"SUM(K113:K114)","v":0},null,null,null,null,null,null,{"$f":"SUM(R113:R114)","v":0},null,null,null,null,{"$f":"SUM(W113:W114)","v":0},{"$f":"SUM(X113:X114)","v":0}]
[null,null,null,null,null,null,null,null,null,null,null,{"$f":"IF(SUM(K$113:K$114)>K$134,K113/(SUM(K$113:K$114))*K$134,K113)","v":0},{"$f":"IFERROR(L113*$K$142,0)","v":0},0,{"$f":"IF(M113+N113>K113*$K$140,M113-((M113+N113)-(K113*$K$140)),M113)","v":0},0,{"$f":"ROUND(O113*P113,2)","v":0},0]
[null,null,null,null,null,null,null,null,null,null,null,{"$f":"IF(SUM(K$113:K$114)>K$134,K114/(SUM(K$113:K$114))*K$134,K114)","v":0},{"$f":"IFERROR(L114*$K$142,0)","v":0},0,{"$f":"IF(M114+N114>K114*$K$140,M114-((M114+N114)-(K114*$K$140)),M114)","v":0},0,{"$f":"ROUND(O114*P114,2)","v":0},0]
["E","Troškovi  projektno - tehničke dokumentacije, geodetskih podloga, elaborata i trošak nadzora ",null,null,null,{"$f":"SUM(F116:F117)","v":0},null,null,null,null,{"$f":"SUM(K116:K117)","v":0},null,null,null,null,null,null,{"$f":"SUM(R116:R117)","v":0},null,null,null,null,{"$f":"SUM(W116:W117)","v":0},{"$f":"SUM(X116:X117)","v":0}]
[null,null,null,null,null,null,null,null,null,null,null,{"$f":"IF(SUM(K$116:K$117)>K$135,K116/(SUM(K$116:K$117))*K$135,K116)","v":0},{"$f":"IFERROR(L116*$K$142,0)","v":0},0,{"$f":"IF(M116+N116>K116*$K$140,M116-((M116+N116)-(K116*$K$140)),M116)","v":0},0,{"$f":"ROUND(O116*P116,2)","v":0},0]
[null,null,null,null,null,null,null,null,null,null,null,{"$f":"IF(SUM(K$116:K$117)>K$135,K117/(SUM(K$116:K$117))*K$135,K117)","v":0},{"$f":"IFERROR(L117*$K$142,0)","v":0},0,{"$f":"IF(M117+N117>K117*$K$140,M117-((M117+N117)-(K117*$K$140)),M117)","v":0},0,{"$f":"ROUND(O117*P117,2)","v":0},0]
["F","Ukupni iznos neprihvatljivih troškova \n(Pojašnjenje: Troškovi koji se ne nalazi na listi prihvatljivih troškova)",null,null,null,{"$f":"SUM(F119:F120)","v":0},null,null,null,null,{"$f":"SUM(K119:K120)","v":0},null,null,null,null,null,null,null,null,null,null,null,{"$f":"SUM(W119:W120)","v":0},{"$f":"SUM(X119:X120)","v":0}]
[null,null,null,null,null,null,null,null,null,null,null,null,null,0]
[null,null,null,null,null,null,null,null,null,null,null,null,null,0]
["G","Ukupan iznos neodobrenih troškova\n(Pojašnjenje: Troškovi s liste prihvatljivih troškova koji su svrstani u neodobrene)",null,null,null,{"$f":"SUM(F122:F123)","v":0},null,null,null,null,{"$f":"SUM(K122:K123)","v":0},null,null,null,null,null,null,null,null,null,null,null,{"$f":"SUM(W122:W123)","v":0},{"$f":"SUM(X122:X123)","v":0}]
[null,null,null,null,null,null,null,null,null,null,null,null,null,0]
[null,null,null,null,null,null,null,null,null,null,null,null,null,0]
["NAPOMENA: "]
["FAZA I - PLAN NABAVE ",null,null,null,null,null,"FAZA II - TABLICA TROŠKOVA I IZRAČUNA POTPORE"]
[]
["H","TEČAJ UTVRĐEN OD EUROPSKE KOMISIJE ZA 1. SIJEČNJA GODINE U KOJOJ SE DONOSI ODLUKA \nPojašnjenje: \n- Nositelj projekta upisuje tečaj koji je Europska središnja banka odredila prije 1. siječnja godine u kojoj se podnosi prijava projekta\n- Agencija za plaćanja upisuje tečaj  koji je Europska središnja banka odredila prije 1. siječnja godine u kojoj je donesena Odluka\n- Web adresa za preuzimanje tečaja:",null,null,null,7.5156000000000001,null,null,null,null,7.5156000000000001]
[null,"Tečajna lista - ECB"]
[null,"OBAVEZAN UNOS !!!"]
["I","NAJVIŠI IZNOS TROŠKOVA KUPNJE POLJOPRIVREDNOG ZEMLJIŠTA I  OBJEKATA (do 10% od ukupnog iznosa prihvatljivih troškova bez općih troškova)\nPojašnjenje:   Red A * 10% ",null,null,null,{"$f":"F4*0.1","v":0},null,null,null,null,{"$f":"K4*0.1","v":0}]
["J","UKUPAN IZNOS PRIHVATLJIVIH TROŠKOVA BEZ OPĆIH TROŠKOVA                                                                                                                                                                                                                                                                              \nPojašnjenje: Red A  +  (manji od redova  I  ili  B) ",null,null,null,{"$f":"MIN(F130, (IF(F106 =\"\", 0, F106)))+F4","v":0},null,null,null,null,{"$f":"MIN(K130, (IF(K106 =\"\", 0, K106)))+K4","v":0}]
["K","POSTOTAK  PRIHVATLJIVIH TROŠKOVA BEZ OPĆIH TROŠKOVA  U FAZI II  U ODNOSU NA PRIHVATLJIVE TROŠKOVE BEZ OPĆIH TROŠKOVA PRIJAVLJENE U FAZI I\nPojašnjenje: Podatak za potrebe utvrđivanja potencijalne financijske korekcije ",null,null,null,null,null,null,null,null,{"$f":"IFERROR(K131/F131,0)","v":0}]
["L","PRIHVATLJIVI IZNOS TROŠKOVA PRIPREME POSLOVNOG PLANA\nPojašnjenje: Red C, ali ne veći od 2% iznosa iz reda J ",null,null,null,{"$f":"IF((IF((37500)>F109, F109, (37500)))>(F131*0.02), (F131*0.02),(IF((37500)>F109, F109, (37500))))","v":0},null,null,null,null,{"$f":"IF((IF((37500)>K109, K109, (37500)))>(K131*0.02), (K131*0.02),(IF((37500)>K109, K109, (37500))))","v":0}]
["M","PRIHVATLJIVI IZNOS TROŠKOVA PRIPREME DOKUMENTACIJE \nPojašnjenje: Red D, ali ne veći od 2% iznosa iz reda J ",null,null,null,{"$f":"IF((IF((75000)>F112, F112, (75000)))>(F131*0.02), (F131*0.02),(IF((75000)>F112, F112, (75000))))","v":0},null,null,null,null,{"$f":"IF((IF((75000)>K112, K112, (75000)))>(K131*0.02), (K131*0.02),(IF((75000)>K112, K112, (75000))))","v":0}]
["N","PRIHVATLJIVI IZNOS TROŠKOVA PRIPREME PROJEKTNO - TEHNIČKE DOKUMENTACIJE, GEODETSKIH USLUGA, ELABORATA I  NADZORA    \nPojašnjenje: Red E, ali ne veći od (10%* Red J)  -  (Red L  + Red M)                                                 ",null,null,null,{"$f":"IF(((F131*0.1)-F133-F134)>F115, F115,((F131*0.1)-F133-F134))","v":0},null,null,null,null,{"$f":"IF(((K131*0.1)-K133-K134)>K115, K115,((K131*0.1)-K133-K134))","v":0}]
["O","UKUPAN IZNOS PRIHVATLJIVIH OPĆIH TROŠKOVA\nPojašnjenje: Zbroj iznosa iz redova L, M i N",null,null,null,{"$f":"F133+F134+F135","v":0},null,null,null,null,{"$f":"K133+K134+K135","v":0}]
["P","UKUPNI IZNOS PRIHVATLJIVOG ULAGANJA\nPojašnjenje: Zbrojiti iznose iz redova J i O",null,null,null,{"$f":"F131+F136","v":0},null,null,null,null,{"$f":"K131+K136","v":0}]
["HIDE \"102\"",null,null,null,null,null,null,null,null,null,{"$f":"IF(MIN((K137*K140),K143)>K144,MIN((K137*K140),K143),0)","v":0},"HIDE!!!!"]
["Q","IZNOS PRIMLJENE DRŽAVNE (JAVNE) POTPORE ZA ISTE TROŠKOVE\nPojašnjenje: Ukoliko je nositelj projekta u prijavi projekta (u AGRONET-u) upisao iznos primljene državne (javne) potpore za iste troškove, ukupan iznos istih je potrebno upisati u ovaj red",null,null,null,null,null,null,null,null,{"$f":"SUM(N9:N114)","v":0}]
["R","INTENZITET POTPORE \nPojašnjenje: 50% od ukupnih prihvatljivih troškova projekta",null,null,null,0.5,null,null,null,null,{"$f":"F140","v":0.5}]
["HIDE \"105\"",null,null,null,null,null,null,null,null,null,{"$f":"IFERROR((IF(MIN(F145,K138)<K143,MIN(F145,K143)/K137,K143/K137)),0)","v":0},"HIDE \"105\"!!!!"]
["HIDE \"106\"",null,null,null,null,null,null,null,null,null,{"$f":"IF(K141>K140,K140,K141)","v":0},"HIDE \"105\"!!!!"]
["V","NAJVIŠI IZNOS POTPORE\nPojašnjenje:\nNajviši iznos potpore je 30.000 EUR \nPojašnjenje: Najviši iznos javne potpore po projektu ne može biti viši od gore navedenog iznosa. Preračun u kune se vrši sukladno tečaju navedenom u redu H.",null,null,30000,{"$f":"E143*F127","v":225468},null,null,null,null,{"$f":"E143*K127","v":225468}]
["W","NAJNIŽI IZNOS  POTPORE \nPojašnjenje:\nNajniži iznos potpore je 10.000 EUR\nPreračunati u kune nsukladno tečaju iz reda H.",null,null,10000,{"$f":"E144*F127","v":75156},null,null,null,null,{"$f":"E144*K127","v":75156}]
["X","IZNOS POTPORE ZA DODJELU\nPojašnjenje: \nIznos potpore za dodjelu  = (Red P * Red R)   -   Red Q, ali \n- ne veći odi od iznosa iz reda V, i\n- ne manji od iznosa iz reda W\n\nIznos potpore za dodjelu u fazi II ne može biti veći od iznosa dodijeljenog u fazi I.",null,null,null,{"$f":"ROUND((IF((IF(F144>((F137*F140)-F139),0,((F137*F140)-F139)))>F143, F143, (IF(F144>((F137*F140)-F139),0,((F137*F140)-F139))))), 2)","v":0},null,null,null,null,{"$f":"MIN(F145,K143,SUM(R4+R106+R109+R112+R115))","v":0}]
["Y","IZNOS POTPORE ZA DODJELU NAKON FINANCIJSKE KOREKCIJE (ako je primjenjivo)\nPojašnjenje: Ukoliko je postotak u redu K niži od 80%, tada se iznos potpore u fazi II umanjuje za 5%:   \nRed X  -  (Red X * 0,05)  ",null,null,null,null,null,null,null,null,{"$f":"K145-IFERROR(ROUND((IF(K132<80%, K145*0.05)), 2),0)","v":0}]
["Z","UKUPAN IZNOS PROJEKTA \nPojašnjenje: Zbroj iznosa iz redova A, B, C, D, E, F i G.\nProjekt ne smije biti veći od 250.000 EUR (s PDV-om)  \nPreračun u kune se vrši sukladno tečaju navedenom u redu F.",null,null,250000,{"$f":"ROUND((F4+F106+F109+F112+F115+F118+F121), 2)","v":0},null,null,null,null,{"$f":"ROUND((K4+K106+K109+K112+K115+K118+K121), 2)","v":0}]
["AA","IZNOS VLASTITIH SREDSTAVA\nPojašnjenje: Ukupan iznos projekta umanjen za iznos potpore. ",null,null,null,{"$f":"F147-F145","v":0},null,null,null,null,{"$f":"K147-K146","v":0}]
["AB","IZNOS POTPORE IZ PRORAČUNA EU\nPojašnjenje: Iznos potpore * 90%",null,null,null,{"$f":"ROUND((F145*0.9), 2)","v":0},null,null,null,null,{"$f":"ROUND((K146*0.9), 2)","v":0}]
["AC","IZNOS POTPORE IZ PROPRAČUNA REPUBLIKE HRAVATSKE\nPojašnjenje: Iznos potpore - Red AB",null,null,null,{"$f":"F145-F149","v":0},null,null,null,null,{"$f":"K146-K149","v":0}]
[]
[]
[]
[null,null,null,null,"Javna nabava"]
[null,null,null,null,"Jednostavna nabava"]
[null,null,null,null,"Korisnik nije obveznik Javne nabave"]

{"sheet":"UPUTE","index":1,"n_rows":27,"n_cols":20,"rows_kept":27,"cut":false,"hidden":true,"merged":[[24,0,24,10],[25,0,25,10],[26,0,26,10],[18,0,18,10],[19,0,19,10],[20,0,20,10],[21,0,21,10],[22,0,22,10],[23,0,23,10],[17,0,17,10],[0,0,0,10],[1,0,1,10],[2,1,15,2],[5,5,14,9],[16,0,16,10]]}
["UPUTE",null,null,null,null,null,null,null,null,null,null,null,"Slika 1."]
["Nakon otvaranja obrasca potrebno je kliknuti \"Enable Content\" (Slika 1) kako bi obrazac ispravno funkcionirao"]
[null,"LEGENDA:"]
[null,null,null,null,null,"* bijela polja su namijenjena popunjavanju"]
[]
[null,null,null,null,null,"* polja obojana drugim bojama su zaključana i nisu namjenjena popunjavanju"]
[]
[]
[]
[]
[]
[]
[]
[]
[]
[]
["Faza I - Odabrani LAG"]
["Ispunjavaju se kolone od B do I",null,null,null,null,null,null,null,null,null,null,null,"Slika 2.",null,null,null,null,null,null,"Slika 3."]
["Umetanje novih redova je omogućeno pomoću funkcije \"Copy\" i \"Insert Copied Cells\" odnosno na način kako je prikazan na Slici 2. i Slici 3."]
["Umetanje redova se obavlja prema potrebi, a ovisno o broju planiranih nabava."]
["Nije dozvoljeno korištenje funkcije \"Cut\" ili \"Izreži\". Ukoliko se isti upotrijebi postoji mogućnost da izračuni i formule neće biti funkcionalni te je potrebno preuzeti novi obrazac i ponovno ga ispuniti"]
["Prilikom upisa naziva predmeta nabave, opisa predmeta nabave te procijenjenog iznosa nabave, ukoliko je primjenjivo, potrebno je koristiti informacije iz relevantnih izvora (projektna dokumentacija, troškovnici, akt o građenju i slično)."]
["Faza II - Agencija za plaćanja"]
["Ispunjava se obrazac \"Plan nabave-TTIP\" koji je zaprimljen kao prilog Odluke o rezultatu administrativne kontrole (izdane putem AGRONET-a). U svrhu podnošenja drugog dijela zahtjeva za potporu popunjavaju se kolone od J do O"]
["Kod ulaganja u izgradnju/rekonstrukciju potrebno je popuniti Tablicu troškova i izračuna potpore u Fazi II  prema grupama radova/ rekapitulaciji troškovnika iz Glavnog projekta (nije potrebno navoditi radove po stavkama). Ukoliko se nabavlja poljoprivredne mehanizacija, uz podatke o osnovnom stroju potrebno je navesti i priključke odnosno pakete dodatne opreme."]
["Faza III - Agencija za plaćanja"]
["Ispunjavaju se kolone od P do U"]

{"sheet":"LPT","index":2,"n_rows":306,"n_cols":4,"rows_kept":306,"cut":false,"hidden":false,"merged":[]}
["LISTA PRIHVATLJIVIH TROŠKOVA "]
[" 4.2. Potpora za ulaganja u preradu, marketing i/ili razvoj poljoprivrednih proizvoda"]
["Tip operacije 4.2.1.Povećanje dodane vrijednosti poljoprivrednim proizvodima"]
["Svi navedeni troškovi unutar Liste prihvatljivih troškova uključuju i troškove za pripadajući hardware i software koji omogućuje vođenje proizvodnih procesa"]
[]
[null,null,null,"Potencijalni doprinos fokus području"]
["Kod troška","Naziv prihvatljivog troška","Fokus područje"]
[]
["a) Ulaganje u građenje /rekonstrukciju i/ili opremanje:"]
["4.2.1.a.i.","Objekata za poslovanje s mlijekom i preradom mlijeka s pripadajućom opremom i unutarnjom i vanjskom infrastrukturom, uključujući rashladnu opremu za sirovo mlijeko"]
[]
[null,"Građenje"]
[null,"objekata za preradu mlijeka i proizvodnju mliječnih proizvoda s unutrašnjom i vanjskom infrastrukturom, a koji uključuju prostorije ili prostore za: prihvat mlijeka s mogućnošću hlađenja i skladištenja do početka prerade; toplinsku obradu mlijeka (pasterizacija/sterilizacija/UHT);  preradu mlijeka u gotov proizvod ili poluproizvod; salamurenje i/ili soljenje proizvoda; predzrenje proizvoda; zrenje proizvoda; dimljenje proizvoda; skladištenje dodataka (sol, šećer, začini i sl.) i aditiva; hlađenje i skladištenje gotovih proizvoda; punjenje, rezanje, konfekcioniranje, označavanje (etiketiranje) i pakiranje gotovih proizvoda; skladištenje materijala za pakiranje; lift za transport gotovih proizvoda ili poluproizvoda; laboratorij; manipulativne prostorije i hodnici; i uredske prostorije; skladištenje opreme i sredstava za čišćenje, pranje i sanitaciju; smještaj centralnih jedinica za sanitaciju (CIP, pjenomat i sl.) garderobe i sanitarne čvorove; otpremu, pripremu proizvoda za promidžbu i kušanje; prodaju i promidžbu gotovih proizvoda; sanitarni čvorovi za kupce i goste; prikupljanje i uskladištenje nusproizvoda životinjskog podrijetla koji nisu za prehranu ljudi; zbrinjavanje i skladištenje primarne, sekundarne i tercijarne ambalaže i otpada; pranje, čišćenje i dezinfekciju gospodarskih vozila; parkiralište ili spremište gospodarskih vozila; unutarnje mreže putova; instalaciju sustava za filtriranje i pročišćavanje vode do zdravstveno ispravne vode (bunarska voda); instalaciju opreme za ventilaciju i klimatizaciju (hlađenje i grijanje); popratnih energetskih objekata (kotlovnica, trafostanica, stlačeni zrak i sl.); skladište plinova za modificiranu atmosferu; vodovodne (uključujući bunare), plinske, električne (uključujući agregate) i kanalizacijske mreže, uključujući postrojenja za obradu otpadnih voda i sprječavanje onečišćenja zraka","3A","5B"]
[null,"ostali nespomenuti objekti "]
[null,"Opremanje"]
[null,"Oprema za prihvat i čuvanje (hlađenje) mlijeka do isporuke ili prerade s odgovarajućim mjernim uređajem za temperaturu te cjevovodi s centrifugalnom crpkom (samo usisnom pumpom)","3A","5B"]
[null,"Oprema za uzorkovanje, prihvat, hlađenje, preradu, punjenje, vaganje, konfekcioniranje, označavanje (etiketiranje) i pakiranje mlijeka i mliječnih proizvoda","3A","5B"]
[null,"Oprema za termičku obradu, sterilizaciju/pasterizaciju","3A"]
[null,"Oprema za transport proizvoda (plastični kontejneri, rashladni boksovi i sl.)","3A"]
[null,"Oprema za čišćenje, pranje i dezinfekciju, uključujući i sterilizaciju objekata, opreme, alata, uređaja i strojeva, garderoba i sanitarnih čvorova (uključujući mjerne uređaje) ","3A"]
[null,"Oprema za transport u objektu i unutar kruga objekta uključujući liftove, manipulaciju i skladištenje mlijeka i mliječnih proizvoda ","3A","5B"]
[null,"Oprema za nadzor, mjerenje i vođenje proizvodnog i skladišnog procesa ","3A"]
[null,"Oprema za filtriranje i pročišćavanje vode do zdravstveno ispravne vode (uključujući kemijsku i bakteriološku pripremu), akumulaciju i razvođenje tople i hladne (ledene) vode ","3A"]
[null,"Oprema za osiguravanje posebnih mikroklimatskih uvjeta u proizvodnim i/ili skladišnim prostorijama (uključujući opremu za klimatizaciju prostorija - hlađenje/grijanje, sušenje/vlaženje zraka)","3A"]
[null,"Oprema za detekciju metala i/ili drugih fizikalnih opasnosti","3A"]
[null,"Oprema za pranje i higijensko sušenje ruku u pogonu i sanitarnim čvorovima (uključujući i tuševe), oprema za garderobne prostorije, te  oprema za čišćenje, pranje i dezinfekciju odjeće i obuće","3A"]
[null,"Oprema za fizikalnu, kemijsku i biološku obradu otpadnih voda, oprema za sprečavanje onečišćenja zraka i rekuperaciju otapala","3A"]
[null,"Oprema za zbrinjavanje i transport primarne, sekundarne i tercijarne ambalaže i otpada","3A"]
[null,"Oprema za sigurnosne i vatrodojavne sustave","3A"]
[null,"ostala nespomenuta oprema"]
["4.2.1.a.ii.","Objekata za klanje, rasijecanje, hlađenje, preradu (mesa i jaja) i pripadajuće skladištenje s pripadajućom unutarnjom i vanjskom infrastrukturom"]
[]
[null,"Građenje objekata za proizvodnju proizvoda od mesa"]
[null,"objekata za klanje i rasijecanje s pripadajućom unutarnjom i vanjskom infrastrukturom, a koji uključuju prostorije ili prostore za: prihvat i privremeni smještaj životinja za klanje (natkriven); manipulaciju sirovina - živih životinja (kolne vage); smještaj bolesnih ili na oboljenje sumnjivih ili ozlijeđenih životinja; pranje i dezinfekciju sredstava za prijevoz živih životinja; sputavanje, omamljivanje i klanje životinja; obavljanje proizvodnog procesa; evisceraciju i daljnju obradu uključujući dodavanje začina cijelim trupovima peradi; skladištenje dodataka (sol, šećer, začini i sl.) i aditiva; rasijecanje i otkoštavanje mesa; pražnjenje i čišćenje želudaca i crijeva; hladno skladištenje zadržanog mesa; skladištenje mesa koje je proglašeno neprikladnim za prehranu ljudi; hlađenje i smrzavanje mesa; laboratorije; rasijecanje, konfekcioniranje i pakiranje mesa; pakiranje jestivih nusproizvoda, otpremu mesa; skladištenje gnoja ili sadržaja probavnog trakta; odvojeno skladištenje zapakiranog i nezapakiranog mesa; lift za transport repromaterijala, zapakiranog i nezapakiranog mesa; hladnjača; uskladištenje nusproizvoda životinjskog podrijetla koji nisu za prehranu ljudi; skladištenje materijala za pakiranje; skladištenje rezervnih dijelova, manipulativne prostorije i hodnici; upravne i uredske prostorije; skladištenje opreme i sredstava za čišćenje, pranje i sanitaciju; smještaj centralnih jedinica za sanitaciju (CIP, pjenomat i sl.); smještaj strojeva i opreme za pranje povratne, manipulativne plastične ambalaže (lodne, nosiljke), garderobe i sanitarne čvorove; parkiralište ili spremište gospodarskih vozila; potrebe veterinarske službe; unutarnja mreža putova;  instalaciju sustava za filtriranje i pročišćavanje vode do zdravstveno ispravne vode (bunarska voda); rashladnog sustava, opreme za instalaciju opreme za ventilaciju i klimatizaciju (hlađenje i grijanje); popratnih energetskih objekata (kotlovnica, trafostanica, stlačeni zrak i sl.); skladište plinova za modificiranu atmosferu; vodovodne (uključujući bunare), plinske, električne (uključujući agregate) i kanalizacijske mreže, uključujući postrojenja za obradu otpadnih voda i sprječavanje onečišćenja zraka, za službu tehničkog održavanja, prostora za privremeno odlaganje otpada","3A","5B"]
[null,"objekata za proizvodnju mljevenog mesa, mesnih pripravaka, strojno otkoštenog mesa, prihvat, čuvanje i/ili rasijecanje mesa i preradu mesa i jaja s pripadajućom unutarnjom i vanjskom infrastrukturom, a koji uključuju prostorije ili prostore za: prihvat mesa s mogućnošću hlađenja i skladištenja do početka prerade; toplinsku obradu; preradu u gotov proizvod ili poluproizvod; salamurenje i/ili soljenje proizvoda; predzrenje proizvoda; zrenje proizvoda; dimljenje proizvoda; sušenje proizvoda; skladištenje dodataka (šećer, sol, začini i sl.) i aditiva; hlađenje i uskladištenje gotovih proizvoda; rezanje, konfekcioniranje i pakiranje gotovih proizvoda; skladištenje materijala za pakiranje; lift za transport repromaterijala, gotovih proizvoda ili poluproizvoda; laboratorij; manipulativne prostorije i hodnici; upravne i uredske prostorije; skladištenje opreme i sredstava za čišćenje, pranje i sanitaciju; smještaj centralnih jedinica za sanitaciju (CIP, pjenomat i sl.); smještaj strojeva i opreme za pranje povratne, manipulativne plastične ambalaže (lodne, nosiljke) garderobe i sanitarne čvorove; otpremu, prodaju i promidžbu gotovih proizvoda i kušanje ; pripremu proizvoda za promidžbu; sanitarni čvorovi za kupce i goste; prikupljanje i uskladištenje nusproizvoda životinjskog podrijetla koji nisu za prehranu ljudi; čišćenje i dezinfekciju prijevoznih sredstava; zbrinjavanje i skladištenje primarne, sekundarne i tercijarne ambalaže i otpada; parkiralište ili spremište gospodarskih vozila; unutarnje mreže putova; instalaciju sustava za filtriranje i pročišćavanje vode do zdravstveno ispravne vode (bunarska voda); instalaciju opreme rashladnog sustava, opreme za ventilaciju i klimatizaciju (hlađenje i grijanje); popratnih energetskih objekata (kotlovnica, trafostanica, stlačeni zrak i sl.); skladište plinova za modificiranu atmosferu; vodovodne (uključujući bunare), plinske, električne (uključujući agregate) i kanalizacijske mreže, uključujući postrojenja za obradu otpadnih voda i sprječavanje onečišćenja zraka, za službu tehničkog održavanja, prostora za privremeno odlaganje otpada","3A","5B"]
[null,"objekata za skladištenje hrane životinjskog podrijetla u uvjetima kontrolirane temperature i/ili prepakiravanje hrane životinjskog podrijetla; prostori za prijem i čuvanje hrane, prostori za konfekcioniranje i pakiranje, prostori za skladištenje materijala za pakiranje, prostori za skladištenje pribora, skladištenje opreme i sredstava za čišćenje, pranje i sanitaciju; smještaj centralnih jedinica za sanitaciju (CIP, pjenomat i sl.); smještaj strojeva i opreme za pranje povratne, manipulativne plastične ambalaže (lodne, nosiljke), upravne i uredske prostorije; prostori za odvojeno skladištenje nusproizvoda životinjskog podrijetla koji nisu za prehranu ljudi; prostori za otpremu proizvoda; garderobni prostori, sanitarni čvorovi, parkiralište ili spremište gospodarskih vozila; unutarnje mreže putova; instalaciju sustava za filtriranje i pročišćavanje vode do zdravstveno ispravne vode (bunarska voda); instalaciju opreme rashladnog sustava, opreme za ventilaciju i klimatizaciju (hlađenje i grijanje); popratnih energetskih objekata (kotlovnica, trafostanica, stlačeni zrak i sl.); skladište plinova za modificiranu atmosferu; vodovodne (uključujući bunare), plinske, električne (uključujući agregate) i kanalizacijske mreže, uključujući postrojenja za obradu otpadnih voda i sprječavanje onečišćenja zraka, za službu tehničkog održavanja, prostora za privremeno odlaganje otpada","3A","5B"]
[null,"pokretne klaonice","3A","5B"]
[null,"ostali nespomenuti objekti"]
[null,"Opremanje"]
[null,"Oprema za istovar životinja i istovarna rampa uključujući mjernu opremu za kvantitativno i kvalitativno zaprimanje peradi – automatska depaletizacije gajbi, kontejnera, transport pomoću konvejera, bruto-tara, automatsko brojanje komada zaprimljene peradi, paletizacija.","3A"]
[null,"Oprema za prihvat, privremeni smještaj , hranidbu i napajanje životinja na depou, čišćenje, pranje i dezinfekciju depoa","3A"]
[null,"Oprema za pomoć pri usmjeravanju životinja tijekom njihovog premještanja u klaonici","3A"]
[null,"Oprema za čišćenje, pranje i dezinfekciju sredstava za prijevoz živih životinja","3A"]
[null,"Oprema za sputavanje, omamljivanje i iskrvarenje životinja ","3A"]
[null,"Oprema za prihvat sirovina","3A"]
[null,"Oprema/sustav (konstrukcije, uređaji) za transport trupova i dijelova trupa, iznutrica jestivih i nejestivih nusproizvoda sa automatskim prevješavanjem trupova i pripadajućom mjernom opremom za kvantitativno i kvalitativno zaprimanje i sortiranje","3A","5B"]
[null,"Oprema za klaoničku obradu trupova nakon iskrvarenja","3A","5B"]
[null,"Uređaji za mjerenje udjela mišićnog tkiva u trupovima","3A"]
[null,"Oprema za centre za skupljanje otpada životinjskog podrijetla ","3A"]
[null,"Oprema za obradu i pakiranje jestivih nusproizvoda","3A"]
[null,"Oprema za pražnjenje i čišćenje, transport i hlađenje želudaca, mjehura i crijeva","3A"]
[null,"Oprema za izradu primarnog pakiranja (podlošci)","3A"]
[null,"Oprema za formiranje i izradu transportnih pakiranja (izrada i ljepilica kutija, formiranje kašeta)","3A"]
[null,"Oprema za automatsko ulaganje proizvoda u transportno pakiranje s paletizacijom","3A"]
[null,"Oprema koja omogućava produženje roka trajanja mesa, usitnjenog mesa, strojno otkoštenog mesa, i proizvoda od mesa prije i nakon pakiranja (ozon UV, lampe, repasterizacija, ionizacija, HPP, pasterizacija/sterilizacija","3A"]
[null,"Oprema za rasijecanje, preradu, pakiranje, vaganje i označavanje","3A"]
[null,"Uređaji za hlađenje pilećih trupova i jestivih iznutrica nakon klanja (hlađenje u struji zraka ili „spin chilleri\")","3A","5B"]
[null,"Oprema za obradu i skladištenje masnoća","3A"]
[null,"Oprema za hlađenje i/ili zamrzavanje sirovine i gotovih proizvoda, uključujući i mjerne uređaje","3A","5B"]
[null,"Oprema za uzorkovanje, prihvat, hlađenje, proizvodnju, preradu, punjenje, konfekcioniranje, narezivanje, vaganje, označavanje (etiketiranje) i pakiranje, paletizaciju mesa,  ","3A","5B"]
[null,"Oprema za obradu mesa, mesnih pripravaka strojno otkoštenog mesa, mljevenog mesa i proizvoda od mesa mikrovalovima","3A","5B"]
[null,"Oprema za termičku obradu, sterilizaciju/pasterizaciju","3A","5B"]
[null,"Oprema za transport proizvoda (plastični kontejneri, rashladni boksovi i sl.)","3A"]
[null,"Oprema za manipulaciju, transport i čuvanje gotovih proizvoda uključujući i gospodarska vozila s rashladnim uređajima, rashladne vitrine i hladnjake.","3A"]
[null,"Oprema za interne veterinarske preglede (vlasništvo pogona, sastavni dio projekta)","3A"]
[null,"Oprema za nadzor, mjerenje i vođenje proizvodnog i skladišnog procesa","3A"]
[null,"Oprema za čišćenje, pranje i dezinfekciju (sterilizaciju) objekata, opreme, interne i povratne vanjske  transportne ambalaže, alata, uređaja i strojeva, garderoba i sanitarnih čvorova s odgovarajućim mjernim uređajima","3A"]
[null,"Oprema za detekciju metala i/ili drugih fizikalnih opasnosti","3A"]
[null,"Oprema za osiguravanje posebnih mikroklimatskih uvjeta u proizvodnim i/ili skladišnim prostorijama ","3A"]
[null,"Oprema i strojevi za čišćenje, pranje i dezinfekciju i higijensko sušenje ruku u pogonu i sanitarnim čvorovima (uključujući i tuševe), oprema za garderobne prostorije, te  oprema za čišćenje, pranje i dezinfekciju odjeće i obuće ","3A"]
[null,"Oprema za zbrinjavanje i transport primarne, sekundarne i tercijarne ambalaže i otpada","3A"]
[null,"Oprema za sigurnosne i vatrodojavne sustave","3A"]
[null,"ostala nespomenuta oprema "]
["4.2.1.a.iii.","Centara (sabirališta) za sakupljanje i preradu otpada, ostataka iz poljoprivredne proizvodnje i nusproizvoda životinjskog podrijetla koji nisu za prehranu ljudi s pripadajućom unutarnjom i vanjskom infrastrukturom"]
[]
[null,"Građenje"]
[null,"centara za skupljanje nusproizvoda životinjskog podrijetla koji nisu za prehranu ljudi i otpada s unutarnjom mrežom putova; prostora za instalaciju opreme za ventilaciju, klimatizaciju (hlađenje i grijanje); popratnih energetskih objekata; vodovodne, (uključujući bunare) plinske, električne (uključujući agregate) i kanalizacijske mreže, uključujući građevine za obradu otpadnih voda i sprječavanje onečišćenja zraka","3A"]
[null,"ostali nespomenuti centri"]
[null,"Opremanje "]
[null,"Oprema za zbrinjavanje i transport nusproizvoda životinjskog podrijetla koji nisu za prehranu ljudi","3A"]
[null,"Oprema za sakupljanje, prihvat, čuvanje (hladno skladištenje), uklanjanje, preradu i transport  nusproizvoda životinjskog podrijetla koji nisu za prehranu ljudi i klaoničkog otpada","3A"]
[null,"ostala nespomenuta oprema"]
["4.2.1.a.iv.","Objekata za preradu voća, povrća, grožđa (osim za proizvodnju vina), aromatičnog, začinskog i ljekovitog bilja, cvijeća i gljiva s pripadajućom unutarnjom i vanjskom infrastrukturom uključujući preradu ostataka iz proizvodnje"]
[]
[null,"Građenje"]
[null,"objekata za preradu kao i preradu ostataka iz proizvodnje koji uključuju prostorije/prostore za: čuvanje sirovina do prerade s mogućnošću hlađenja uključujući ULO hladnjače, prihvat, pranje/čišćenje, sortiranje i obradu sirovine; preradu, konzerviranje, sušenje, zamrzavanje, fermentiranje i ukiseljavanje voća, povrća, grožđa (osim za vino), aromatičnog, začinskog i ostalog bilja, cvijeća i gljiva; termičku obradu; rezanje, konfekcioniranje, označavanje (etiketiranje) i pakiranje gotovih proizvoda; skladištenje materijala za pakiranje; skladištenje dodataka (sol, šećer, začini i sl.) i aditiva; pripremu otopina (šećera, soli, kiselina i sl.) hlađenje i skladištenje gotovih proizvoda; lift za transport repromaterijala, gotovih proizvoda ili poluproizvoda; laboratorij; manipulativne prostorije i hodnici; upravne i uredske prostorije; skladištenje opreme i sredstava za čišćenje, pranje i sanitaciju; smještaj centralnih jedinica za sanitaciju (CIP, pjenomat i sl.); garderobe i sanitarne čvorove; otpremu, prodaju i promidžbu gotovih proizvoda i kušanje ; pripremu proizvoda za promidžbu; sanitarni čvorovi za kupce i goste; tehnološku obradu sekundarnih organskih sirovina, pakiranje proizvoda nastalih preradom sekundarnih organskih sirovina; zbrinjavanje i skladištenje primarne, sekundarne i tercijarne ambalaže i otpada; čišćenje i dezinfekciju gospodarskih vozila; parkiralište ili spremište gospodarskih vozila; unutarnje mreže putova; instalaciju sustava za filtriranje i pročišćavanje vode do zdravstveno ispravne vode (bunarska voda); instalaciju opreme rashladnog sustava, opreme za ventilaciju i klimatizaciju (hlađenje i grijanje); popratnih energetskih objekata (kotlovnica, trafostanica, stlačeni zrak i sl.); skladište plinova za modificiranu atmosferu; vodovodne (uključujući bunare), plinske, električne (uključujući agregate) i kanalizacijske mreže, uključujući postrojenja za obradu otpadnih voda i sprječavanje onečišćenja zraka, za službu tehničkog održavanja, prostora za privremeno odlaganje otpada","3A","5B"]
[null,"ostali nespomenuti objekti "]
[null,"Opremanje"]
[null,"Oprema za prihvat sirovine","3A"]
[null,"Oprema za sušenje i/ili pranje, čišćenje i sortiranje","3A"]
[null,"Oprema i uređaji za preradu, punjenje, vaganje, konfekcioniranje, pakiranje, označavanje, privremenu pohranu i skladištenje","3A","5B"]
[null,"Oprema za termičku obradu, sterilizaciju/pasterizaciju i sušenje","3A","5B"]
[null,"Oprema i uređaji za hlađenje i zamrzavanje, uključujući liofilizatore","3A","5B"]
[null,"Oprema i uređaji za pogone za grijanje","3A"]
[null,"Oprema za umjetno prozračivanje, klimatizaciju, hlađenje i grijanje objekta za preradu i skladištenje","3A","5B"]
[null,"Oprema za detekciju stakla i metala i/ili drugih fizikalnih opasnosti","3A"]
[null,"Oprema za transport sirovina i poluproizvoda (palete, boks palete, plastični kontejneri i sl.)","3A"]
[null,"Oprema i uređaji za tretiranje otpada i otpadnih voda","3A"]
[null,"Oprema za tehnološku obradu, pakiranje, označavanje i transport sekundarnih organskih sirovina (ekstrakcija, kompostiranje, peletiranje i sl.)","3A"]
[null,"Oprema za pranje i higijensko sušenje ruku u objektu i sanitarnim čvorovima (uključujući i tuševe), oprema za garderobne prostorije, te oprema za čišćenje, pranje i dezinfekciju odjeće i obuće","3A"]
[null,"Oprema za skladištenje sirovine i gotovih proizvoda ","3A"]
[null,"Software za praćenje tijeka sirovine (sljedljivost)","3A"]
[null,"Računalna oprema uključujući pripadajući software","3A"]
[null,"Oprema za zbrinjavanje i transport primarne, sekundarne i tercijarne ambalaže i otpada","3A"]
[null,"Oprema za čišćenje, pranje i dezinfekciju, uključujući i sterilizaciju objekata, opreme, alata, uređaja i strojeva, garderoba i sanitarnih čvorova (uključujući mjerne uređaje)","3A"]
[null,"Oprema za proizvodnja vina od voća (od prijema do punjenja vina u boce i etiketiranja vina u podrumu)","3A","5B"]
[null,"Oprema za regulaciju temperature (rashlađivanje prostora, hladne sobe) trošak nabave i montaže rashladnih uređaja, trošak izmjene/izgradnje izolacija/ventilacije","3A","5B"]
[null,"Infrastruktura podruma (cjevovodi, cijevi, razne mreže (kisik, dušik, voda, SO2)","3A"]
[null,"Oprema za sigurnosne i vatrodojavne sustave","3A"]
[null,"ostala nespomenuta oprema"]
["4.2.1.a.v.","Objekata za preradu maslina, komine masline s pripadajućom unutarnjom i vanjskom infrastrukturom"]
[null,"Građenje"]
[null,"objekata za preradu koji uključuju prostorije/prostore za: čuvanje sirovina do prerade s mogućnošću hlađenja, prihvat sirovine, pranje/čišćenje, sortiranje, obradu, prešanje ili centrifugalnu ekstrakciju, preradu maslina u ulje; taloženje, skladištenje maslinovog ulja u spremnicima, pročišćavanje (filtriranje); punjenje;  skladištenje materijala za pakiranje, skladištenje gotovih proizvoda, laboratorij; označavanje (etiketiranje) i pakiranje; garderobe, sanitarne čvorove, lift za transport gotovih proizvoda ili poluproizvoda; manipulativne prostorije i hodnici; upravne i uredske prostorije; skladištenje opreme  i sredstava za čišćenje, pranje i sanitaciju; smještaj centralnih jedinica za sanitaciju (CIP, pjenomat i sl.); otpremu, prodaju i promidžbu gotovih proizvoda i kušanje; pripremu proizvoda za promidžbu; sanitarni čvorovi za kupce i goste; tehnološku obradu sekundarnih organskih sirovina, pakiranje proizvoda nastalih preradom sekundarnih organskih sirovina; zbrinjavanje i skladištenje primarne, sekundarne i tercijarne ambalaže i otpada; čišćenje i dezinfekciju gospodarskih vozila; parkiralište ili spremište gospodarskih vozila; unutarnje mreže putova; instalaciju sustava za filtriranje i pročišćavanje vode do zdravstveno ispravne vode (bunarska voda); popratnih energetskih objekata (kotlovnica, trafostanica, stlačeni zrak i sl.); skladište plinova za modificiranu atmosferu; izgradnja i/ili rekonstrukcija vodovodne (uključujući bunare), plinske, električne (uključujući agregate) i kanalizacijske mreže, uključujući postrojenja za obradu otpadnih voda i sprječavanje onečišćenja zraka, za službu tehničkog održavanja, prostora za privremeno odlaganje otpada ","3A","5B"]
[null,"ostali nespomenuti objekti"]
[null,"Opremanje"]
[null,"Oprema i uređaji za prihvat i čuvanje maslina do prerade","3A"]
[null,"Oprema i uređaji za preradu maslina u ulje","3A","5B"]
[null,"Oprema i uređaji za pročišćavanje maslinovog ulja","3A"]
[null,"Spremnici za taloženje i skladištenje maslinovog ulja (uključujući skladištenje u inertnoj atmosferi)","3A"]
[null,"Linije za punjenje maslinovoga ulja uz pripadajuću opremu (uključujući opremu i uređaje za pranje i dezinficiranje boca)","3A","5B"]
[null,"Cjevovodi i armature","3A"]
[null,"Oprema i uređaji za označavanje (etiketiranje), pakiranje, privremenu pohranu i skladištenje","3A"]
[null,"Oprema za transport u krugu objekta sukladno zahtjevima projekta (viličari, palete za boce, kontejneri)","3A"]
[null,"Oprema za trženje maslinovog ulja i transport gotovih proizvoda","3A"]
[null,"Oprema za pranje i higijensko sušenje ruku u objektu i sanitarnim čvorovima (uključujući i tuševe), oprema za garderobne prostorije, te oprema za čišćenje, pranje i dezinfekciju objekta i opreme","3A"]
[null,"Oprema za čišćenje, pranje i dezinfekciju, uključujući i sterilizaciju objekata, opreme, alata, uređaja i strojeva, garderoba i sanitarnih čvorova (uključujući mjerne uređaje)","3A"]
[null,"Oprema za klimatizaciju, grijanje i ventilaciju objekata za preradu i skladištenje","3A","5B"]
[null,"Oprema za zbrinjavanje i transport primarne, sekundarne i tercijarne ambalaže i otpada ","3A"]
[null,"Oprema za sigurnosne i vatrodojavne sustave","3A"]
[null,"ostala nespomenuta oprema"]
[null,"Oprema za  nepeltiranu i peletiranu kominu masline (oprema za preradu sekundarnih organskih sirovina-komine masline za ishranu domaćih životinja)","3A"]
[null,"Sušionik","3A"]
[null,"Uređaj za određivanje dušika","3A"]
[null,"Uređaj za određivanje ukupnog ugljika","3A"]
[null,"Mufolna peć","3A"]
[null,"pH-metar","3A"]
[null,"Termometar","3A"]
[null,"Utovarivač","3A"]
[null,"Prevrtač kompostne hrpe (windrow turner)","3A"]
[null,"Uređaj za peletiranje","3A"]
[null,"Spremnici za prikupljanje i odvoz komine do kompostišta","3A"]
[null,"ostala nespomenuta oprema"]
["4.2.1.a.vi.","Objekata za preradu žitarica, uljarica i industrijskog bilja te njihovih ostataka s pripadajućom unutarnjom i vanjskom infrastrukturom"]
[]
[null,"Građenje"]
[null,"objekata za preradu koji uključuju prostorije/prostore za: čuvanje sirovina do prerade s mogućnošću sušenja i/ili hlađenja, prihvat i skladištenje sirovine (podna i etažna skladišta i silosi), manipulaciju sirovina (usisni koševi, transportni lanci, elevatori kolne vage); sušenje sirovina (sušare); mljevenje sirovina; pranje/čišćenje, sortiranje; prešanje, ekstrakciju i preradu, označavanje (etiketiranje) i pakiranje; skladišta materijala za pakiranje, dodataka gotovim proizvodima i poluproizvodima, aditiva; skladišta gotovih proizvoda; laboratorij; garderobe, sanitarne čvorove, lift za transport gotovih proizvoda ili poluproizvoda; manipulativne prostorije i hodnici; upravne i uredske prostorije; skladištenje opreme i sredstava za čišćenje, pranje i sanitaciju; smještaj centralnih jedinica za sanitaciju (CIP, pjenomat i sl.); otpremu, prodaju i promidžbu gotovih proizvoda i kušanje; pripremu proizvoda za promidžbu; sanitarni čvorovi za kupce i goste; tehnološku obradu sekundarnih organskih sirovina, pakiranje proizvoda nastalih preradom sekundarnih organskih sirovina; zbrinjavanje i skladištenje primarne, sekundarne i tercijarne ambalaže i otpada; čišćenje i dezinfekciju gospodarskih vozila; parkiralište ili spremište gospodarskih vozila; unutarnje mreže putova; instalaciju sustava za filtriranje i pročišćavanje vode do zdravstveno ispravne vode (bunarska voda); popratnih energetskih objekata (kotlovnica, trafostanica, stlačeni zrak i sl.); skladište plinova za modificiranu atmosferu; izgradnja i/ili rekonstrukcija vodovodne (uključujući bunare), plinske, električne (uključujući agregate) i kanalizacijske mreže, uključujući, za službu tehničkog održavanja","3A","5B"]
[null,"ostali nespomenuti objekti"]
[null,"Opremanje"]
[null,"Oprema za obradu otpadnih voda i sprječavanje onečišćenja zraka","3A","5B"]
[null,"Oprema za prihvat i manipulaciju sirovina (horizontalni i vertikalni transporteri zrna, vage za kamione, protočne vage za zrno)","3A"]
[null,"Oprema za sušenje i/ili pranje, čišćenje i sortiranje","3A","5B"]
[null,"Mlinska postrojenja (čekićari, mlinovi, sita, vage, pakirnice brašna i sl.)","3A"]
[null,"Postrojenja za preradu žitarica, uljarica i industrijskog bilja u hranu za životinje (šrot, posije, uljane pogače i sačme i sl.)","3A","5B"]
[null,"Oprema za manipulaciju, transport, skladištenje i prodaju hrane i hrane za životinje","3A"]
[null,"Oprema i uređaji za preradu, punjenje; konfekcioniranje, vaganje, pakiranje,  označavanje (etiketiranje), privremenu pohranu i skladištenje, ","3A","5B"]
[null,"Oprema i uređaji za preradu, punjenje; konfekcioniranje, vaganje, pakiranje,  označavanje (etiketiranje), privremenu pohranu i skladištenje uljarica, žitarica, grahorica i ostalih zrnatih kultura","3A","5B"]
[null,"Oprema i uređaji za ljuštenje, meljavu, kondicioniranje, prešanje i ekstrakciju uljarica","3A","5B"]
[null,"Oprema i uređaji za pročišćavanje ulja","3A"]
[null,"Oprema i uređaji za hlađenje i zamrzavanje","3A","5B"]
[null,"Linije za punjenje ulja, brašna i sl. uz pripadajuću opremu (uključujući opremu i uređaje za pranje i dezinficiranje boca)","3A"]
[null,"Cjevovodi i armature","3A"]
[null,"Oprema i uređaji za preradu ulja u biljne masnoće (proizvodnja margarina i biljne mrsi), njihovo punjenje; konfekcioniranje, vaganje, pakiranje,  označavanje (etiketiranje), privremenu pohranu i skladištenje","3A","5B"]
[null,"Oprema za transport u krugu objekta sukladno zahtjevima projekta (viličari, palete za boce, kontejneri i dr.)  ","3A"]
[null,"Oprema za čišćenje, pretpranje, pranje i dezinfekciju, uključujući i sterilizaciju objekata, opreme, alata, uređaja i strojeva, garderoba i sanitarnih čvorova (uključujući mjerne uređaje)","3A"]
[null,"Oprema za pranje i higijensko sušenje ruku u objektu i sanitarnim čvorovima (uključujući i tuševe), oprema za garderobne prostorije, te oprema za čišćenje, pranje i dezinfekciju objekta i opreme","3A"]
[null,"Oprema za klimatizaciju, grijanje i ventilaciju objekata za preradu i skladištenje","3A","5B"]
[null,"Oprema za zbrinjavanje i transport primarne, sekundarne i tercijarne ambalaže i otpada ","3A"]
[null,"Oprema za sigurnosne i vatrodojavne sustave","3A"]
[null,"ostala nespomenuta oprema"]
["4.2.1.a.vii.","Objekata za preradu, punjenje i pakiranje  pčelinjih proizvoda s pripadajućom unutarnjom i vanjskom infrastrukturom"]
[]
[null,"Građenje"]
[null,"objekata za obradu, preradu i punjenje meda i pčelinjih proizvoda koji uključuju prostorije/prostore za: čuvanje sirovina do obrade i punjenje, prihvat sirovine, sortiranje, obradu, sušenje, dekristalizaciju, hlađenje, pročišćavanje (filtriranje); punjenje;  skladištenje materijala za pakiranje,  dodataka gotovim proizvodima i poluproizvodima, skladištenje gotovih proizvoda, laboratorij; označavanje (etiketiranje) i pakiranje; garderobe, sanitarne čvorove, lift za transport gotovih proizvoda ili poluproizvoda; manipulativne prostorije i hodnici; upravne i uredske prostorije; skladištenje opreme i sredstava za čišćenje, pranje i sanitaciju; smještaj centralnih jedinica za sanitaciju (CIP, pjenomat i sl.); otpremu, prodaju i promidžbu gotovih proizvoda i kušanje; pripremu proizvoda za promidžbu; sanitarni čvorovi za kupce i goste; pakiranje proizvoda nastalih obradom, preradom i punjenjem; zbrinjavanje i skladištenje primarne, sekundarne i tercijarne ambalaže i otpada; čišćenje i dezinfekciju gospodarskih vozila; parkiralište ili spremište gospodarskih vozila; unutarnje mreže putova; instalaciju sustava za filtriranje i pročišćavanje vode do zdravstveno ispravne vode (bunarska voda); popratnih energetskih objekata (kotlovnica, trafostanica, stlačeni zrak i sl.); skladište plinova za modificiranu atmosferu; izgradnja i/ili rekonstrukcija vodovodne (uključujući bunare), plinske, električne (uključujući agregate) i kanalizacijske mreže, uključujući postrojenja za obradu otpadnih voda i sprječavanje onečišćenja zraka ","3A","5B"]
[null,"ostali nespomenuti objekti "]
[null,"Opremanje"]
[null,"Oprema i uređaji za prihvat i čuvanje meda i pčelinjih proizvoda, prerade i punjenja","3A"]
[null,"Oprema i uređaji za pročišćavanje i dekristalizaciju meda te pohranu na odgovarajuću temperaturu pčelinjih proizvoda","3A","5B"]
[null,"Linije za punjenje meda i pčelinjih proizvoda uz pripadajuću opremu (uključujući opremu i uređaje za pranje i dezinficiranje boca)","3A","5B"]
[null,"Linije za vrcanje meda","3A","5B"]
[null,"Cjevovodi i armature","3A"]
[null,"Mobilne vrcaone (kontenjeri)","3A"]
[null,"Oprema i uređaji za označavanje (etiketiranje), pakiranje, privremenu pohranu i skladištenje","3A"]
[null,"Oprema za transport u krugu objekta sukladno zahtjevima projekta  (palete za boce, kontejneri)","3A"]
[null,"Oprema za trženje meda i pčelinjih proizvoda","3A"]
[null,"Oprema za pranje i higijensko sušenje ruku u objektu i sanitarnim čvorovima (uključujući i tuševe), oprema za garderobne prostorije, te oprema za čišćenje, pranje i dezinfekciju objekta i opreme","3A"]
[null,"Oprema za klimatizaciju, grijanje i ventilaciju objekata za obradu,preradu, punjenje i skladištenje","3A","5B"]
[null,"Oprema za zbrinjavanje i transport primarne, sekundarne i tercijarne ambalaže i otpada","3A"]
[null,"Oprema za sigurnosne i vatrodojavne sustave","3A"]
[null,"Dekristalizator za med","3A"]
[null,"Sušionik za pelud","3A"]
[null,"Liofilizator","3A"]
[null,"Miješalica za homogenizaciju meda","3A"]
[null,"Oprema za organoleptičku analizu meda i ostalih pčelinjih proizvoda","3A"]
[null,"ostala nespomenuta oprema"]
["4.2.1.a.viii.","Objekata za preradu ostalih proizvoda navedenih u Prilogu I. Ugovoru s pripadajućom vanjskom i unutarnjom infrastrukturom"]
[null,"Građenje "]
[null,"objekata za preradu ostalih proizvoda navedenih u Prilogu I. Ugovora s pripadajućom vanjskom i unutarnjom infrastrukturom "]
[null,"Opremanje "]
[null,"objekata za preradu ostalih proizvoda navedenih u Prilogu I. Ugovora s pripadajućom vanjskom i unutarnjom infrastrukturom "]
["4.2.1.a.ix.","Ostalih gospodarskih objekata, upravnih prostorija s pripadajućim sadržajima, opremom i infrastrukturom koji su u funkciji  djelatnosti prerade"]
[null,"Građenje"]
[null,"ostalih gospodarskih objekata, upravnih prostorija s pripadajućim sadržajima "]
[null,"Opremanje","3A"]
[null,"gospodarskih objekata, upravnih prostorija s pripadajućim sadržajima"]
["4.2.1.a.x.","Objekata za prodaju i prezentaciju vlastitih poljoprivrednih proizvoda ","3A"]
[null,"Građenje"]
[null,"objekata za prodaju i prezentaciju vlastitih proizvoda"]
[null,"kupnja kioska, drvenih kućica, izložbenih vitrina, štandova ili drugih pokretnih objekata za prodaju vlastitih poljoprivrednih proizvoda (dodati)"]
[null,"ostali nespomenuti objekti"]
[null,"Opremanje","3A"]
[null,"objekata za prodaju i prezentaciju vlastitih proizvoda "]
[null,"Mljekomat, sokomat i ostali automati za prezentaciju poljoprivrednih proizvoda iz Priloga I Ugovoru.","3A"]
[null,"Vage, fiskalne blagajne, kolica za transport proizvoda i dr. ","3A"]
[null,"ostala nespomenuta oprema"]
["4.2.1.a.xi.","Objekata za obradu otpadnih voda u preradi i trženju, filtriranje zraka i rashladne sustave s pripadajućom unutarnjom i vanjskom infrastrukturom","3A"]
[null,"Građenje"]
[null,"postrojenja za obradu otpadnih voda i sprječavanje onečišćenja zraka"]
[null,"ostali nespomenuti objekti"]
[null,"Opremanje ","3A"]
[null,"Oprema za fizikalnu, kemijsku i biološku obradu otpadnih voda, oprema za sprečavanje onečišćenja zraka i rekuperaciju otapala"]
[null,"Oprema za obradu vode iz vlastitog izvora – bunara (dezinfekcija, omekšavanje, ultrafiltriranje, reerzna osmoza i dr. ) vode za piće, sanitarne i tehnološke vode.","3A"]
[null,"Oprema za hlađenje, grijanje (pripremu pare) i obradu (omekšavanje, ultrafiltriranje, reerzna osmoza i dr.) vode za piće, sanitarne i tehnološke potrebe","3A"]
[null,"ostala nespomenuta oprema"]
["4.2.1.a.xii.","Laboratorija za vlastite potrebe nositelja projekta koji su u funkciji djelatnosti prerade","3A","5B"]
[null,"Laboratorijska oprema za internu uporabu"]
[null,"Termostat","3A"]
[null,"Oprema za kemijsku analizu  (maslinovo ulje)","3A"]
[null,"Uređaj za destilaciju vode","3A"]
[null,"Sušionik-sterilizator","3A"]
[null,"UV-VIS spektrofotometar","3A"]
[null,"Vage tehničke i analitičke","3A"]
[null,"Hladnjak za uzorke","3A"]
[null,"Magnetska miješalica","3A"]
[null,"Centrifuga","3A"]
[null,"Vakuum uparivač s manostatom","3A"]
[null,"Plinski kromatograf (FID, ECD i PFD detektori)","3A"]
[null,"Uređaj za tekućinsku kromatografiju","3A"]
[null,"Grijači za organoleptičku analizu maslinovog ulja sa 6 grijaćih mjesta","3A"]
[null,"Laboratorijska oprema za ispitivanje kvalitete mlijeka i proizvoda od mlijeka","3A"]
[null,"Laboratorijska oprema za ispitivanje kvalitete mesa, jaja i proizvoda","3A"]
[null,"Laboratorijska oprema za ispitivanje kvalitete voća, povrća, aromatičnog, začinskog i ostalog bilja, cvijeća i gljiva","3A"]
[null,"Laboratorijska oprema za ispitivanje kvalitete žitarica, uljarica, industrijskog bilja i gotovih proizvoda","3A"]
[null,"Laboratorijska oprema za ispitivanje kvalitete meda i prerađevina","3A"]
[null,"ostala nespomenuta oprema"]
["4.2.1.b.","Kupnja gospodarskih vozila, poljoprivrednih strojeva i opreme ","3A"]
[null,"Vozila i pripadajuća oprema za transport živih životinja do klaonice "]
[null,"Specijalna vozila za transport sirovog mlijeka s odgovarajućom opremom (mjerni uređaji, usisne crpke, uređaj za uzorkovanje, uređaj za hlađenje uzoraka, oprema za pranje i dezinfekciju mjerno usisnog sustava i cisterne, termo izolirane komore cisterne od nehrđajućeg čelika","3A","5B"]
[null,"Kupnja gospodarskih vozila i vozila s rashladnim uređajem za transport gotovih proizvoda ili ugradnja rashladnih uređaja ","3A","5B"]
[null,"Oprema za manipulaciju i transport gotovih proizvoda uključujući i gospodarska vozila s rashladnim uređajima","3A","5B"]
[null,"Oprema za prijevoz živih životinja unutar klaonice","3A"]
[null,"Oprema za transport u objektu i unutar kruga objekta ","3A"]
[null,"Rashladna vozila za transport gotovih proizvoda","3A"]
["4.2.1. c.","Kupnja zemljišta i objekata radi realizacije projekta do 10% vrijednosti ukupno prihvatljivih troškova projekta (bez općih troškova) ako se ulaganje provodi sukladno važećim propisima kojima se uređuje gradnja, uz mogućnost kupnje prije podnošenja zahtjeva za potporu, ali ne prije 1. siječnja 2014. godine","3A"]
["4.2.1.d.","Prilagodba novouvedenim standardima sukladno članku 17. Uredbe (EU) br. 1305/2013"]
[]
[]
[]
[]
["ZOZO - Zakon o zaštiti okoliša (NN, br. 80/13, 153/13, 78/15)"]
["ZZP - Zakon o zaštiti prirode (NN, br. 80/13)"]
["Uredba - Uredba o procjeni utjecaja zahvata na okoliš (NN, br. 61/14, 3/17)"]
["OPEM - Pravilnik o ocjeni prihvatljivosti za ekološku mrežu (NN, br. 146/2014)"]
["Nema obveze ishođenja akta nadležnog tijela za zaštitu okoliša"]
["Napomene: "]
[" - Za zahvate za koje se prema Uredbi provodi postupak ocjene o potrebi procjene utjecaja na okoliš Prethodna ocjena prihvatljivosti za ekološku mrežu provodi se u okviru toga postupka"]
[" - Obveze koje proizlaze iz ZOZO, Uredbe i ZZP odnose samo na građenje novih objekata ili izmjenu postojećih kojima se povećava kapacitet"]
[]
[]
[]
[]
[]
[]
[]
["Lista dozvoljenih radova vezano uz građenje"]
["A. GRAĐEVINSKI RADOVI"]
["1. Pripremni radovi"]
["2. Rušenja i demontaže"]
["3. Zemljani radovi"]
["4. Betonski radovi"]
["5. Armirano-betonski radovi i armirački radovi "]
["6. Montažerski radovi"]
["7.Tesarski radovi"]
["8. Zidarski radovi"]
["9. Čelična konstrukcija"]
["10. Izolaterski radovi"]
["11. Krovopokrivački radovi"]
["B. OBRTNIČKI RADOVI"]
["1. Limarski radovi"]
["2. Stolarski radovi"]
["3. Bravarski radovi"]
["4. Staklarski radovi"]
["5. Gips-kartonski radovi"]
["6. Podne i zidne obloge"]
["7. Kamenarski radovi"]
["8. Keramičarski radovi"]
["9. Parketarski radovi"]
["10. Soboslikarsko-ličilački radovi"]
["11. Fasaderski radovi"]
["C. INSTALATERSKI RADOVI"]
["1. Elektroinstalacije"]
["2. Instalacije vodovoda i kanalizacije i zaštite od požara"]
["3. Sanitarna oprema"]
["4. Strojarske instalacije"]
["5. Instalacija plina, grijanja, hlađenja i ventilacije"]
["6. Instalacija solarnih panela"]
["D. UREĐENJE OKOLIŠA I PRISTUPNIH PUTEVA"]